fUSD/lending_fUSD_20250628
["ID","MTS","AMOUNT","RATE_DAILY","PERIOD"]
[368247485,1751071871178,-490.0,0.00045205,60]
[368247486,1751071871188,-490.0,0.00045205,60]
[368247487,1751071871198,-490.0,0.00045205,60]
[368247488,1751071871211,-490.0,0.00045205,60]
[368247489,1751071871221,-490.0,0.00045205,60]
[368247490,1751071871230,-490.0,0.00045205,60]
[368247491,1751071871240,-490.0,0.00045205,60]
[368247492,1751071871405,-656.12,0.00045205,2]
[368247493,1751071871415,-490.0,0.00045205,60]
[368247494,1751071871424,-490.0,0.00045205,60]
[368247495,1751071871433,-510.76,0.00045205,60]
[368247496,1751071871443,-490.0,0.00045205,60]
[368247497,1751071871452,-687.24,0.00045205,60]
[368247498,1751071871461,-490.0,0.00045205,60]
[368247499,1751071871470,-490.0,0.00045205,60]
[368247500,1751071871480,-490.0,0.00045205,60]
[368247501,1751071871490,-490.0,0.00045205,60]
[368247502,1751071871499,-571.32,0.00045205,60]
[368247503,1751071871509,-510.5,0.00045205,60]
[368247504,1751071871518,-490.0,0.00045205,60]
[368247505,1751071871527,-490.0,0.00045205,60]
[368247506,1751071871536,-490.0,0.00045205,60]
[368247507,1751071871546,-535.46628265,0.00045205,60]
[368247508,1751071871555,-490.0,0.00045205,60]
[368247509,1751071871565,-490.0,0.00045205,60]
[368247510,1751071871574,-1241.16,0.00045205,60]
[368247511,1751071871584,-490.0,0.00045205,60]
[368247512,1751071871593,-525.6,0.00045205,60]
[368247513,1751071871603,-490.0,0.00045205,60]
[368247514,1751071871612,-779.72,0.00045205,60]
[368247515,1751071871621,-490.0,0.00045205,60]
[368247516,1751071871630,-500.0,0.00045205,120]
[368247517,1751071871640,-490.0,0.00045205,60]
[368247518,1751071871650,-490.0,0.00045205,60]
[368247519,1751071871660,-490.0,0.00045205,60]
[368247520,1751071871669,-490.0,0.00045205,60]
[368247521,1751071871679,-157.55,0.00045205,60]
[368247522,1751071871688,-491.76,0.00045205,60]
[368247523,1751071871697,-490.0,0.00045205,60]
[368247524,1751071871706,-490.0,0.00045205,60]
[368247525,1751071871716,-597.71,0.00045205,60]
[368247526,1751071871726,-490.0,0.00045205,60]
[368247527,1751071871735,-490.0,0.00045205,60]
[368247528,1751071871744,-490.0,0.00045205,60]
[368247529,1751071871753,-490.0,0.00045205,60]
[368247530,1751071871762,-490.0,0.00045205,60]
[368247531,1751071871771,-156.106223,0.00045205,60]
[368247532,1751071871781,-696.1,0.00045205,60]
[368247533,1751071871790,-490.0,0.00045205,60]
[368247534,1751071871801,-490.0,0.00045205,60]
[368247535,1751071871811,-490.0,0.00045205,60]
[368247536,1751071871821,-549.76977,0.00045205,60]
[368247537,1751071871830,-490.0,0.00045205,60]
[368247538,1751071871840,-602.03,0.00045205,60]
[368247539,1751071871850,-308.64,0.00045205,60]
[368247540,1751071871859,-490.0,0.00045205,60]
[368247541,1751071871868,-490.0,0.00045205,60]
[368247542,1751071871878,-490.0,0.00045205,60]
[368247543,1751071871888,-154.28143,0.00045205,60]
[368247544,1751071871897,-490.0,0.00045205,60]
[368247545,1751071871907,-490.0,0.00045205,60]
[368247546,1751071871916,-490.0,0.00045205,60]
[368247547,1751071871925,-271.05,0.00045205,60]
[368247548,1751071871934,-490.0,0.00045205,60]
[368247549,1751071871944,-490.0,0.00045205,60]
[368247550,1751071871953,-490.0,0.00045205,60]
[368247551,1751071871963,-490.0,0.00045205,60]
[368247552,1751071871972,-490.0,0.00045205,60]
[368247553,1751071871982,-179.564808,0.00045205,60]
[368247554,1751071871991,-721.73,0.00045205,60]
[368247555,1751071872001,-490.0,0.00045205,60]
[368247556,1751071872011,-490.0,0.00045205,60]
[368247557,1751071872020,-490.0,0.00045205,60]
[368247558,1751071872029,-430.95635707,0.00045205,60]
[368247559,1751071872038,-490.0,0.00045205,60]
[368247560,1751071872048,-490.0,0.00045205,60]
[368247561,1751071872057,-490.0,0.00045205,60]
[368247562,1751071872066,-490.0,0.00045205,60]
[368247563,1751071872075,-490.0,0.00045205,60]
[368247564,1751071872084,-490.0,0.00045205,60]
[368247565,1751071872093,-958.32,0.00045205,60]
[368247566,1751071872102,-490.0,0.00045205,60]
[368247567,1751071872111,-490.0,0.00045205,60]
[368247568,1751071872121,-490.0,0.00045205,60]
[368247569,1751071872130,-507.37,0.00045205,60]
[368247570,1751071872139,-490.0,0.00045205,60]
[368247571,1751071872149,-490.0,0.00045205,60]
[368247572,1751071872158,-490.0,0.00045205,60]
[368247573,1751071872167,-743.38,0.00045205,60]
[368247574,1751071872176,-490.0,0.00045205,60]
[368247575,1751071872190,-631.22,0.00045205,60]
[368247576,1751071872213,-526.08,0.00045205,60]
[368247577,1751071872232,-564.27663422,0.00045205,60]
[368247578,1751071872251,-490.0,0.00045205,60]
[368247579,1751071872267,-490.0,0.00045205,60]
[368247580,1751071872284,-1492.54,0.00045205,60]
[368247581,1751071872303,-519.17,0.00045205,60]
[368247582,1751071872321,-490.0,0.00045205,60]
[368247583,1751071872340,-323.66,0.00045205,60]
[368247584,1751071872359,-300.0,0.00045205,60]
[368247585,1751071872377,-490.0,0.00045205,60]
[368247586,1751071872393,-490.0,0.00045205,60]
[368247587,1751071872407,-490.0,0.00045205,60]
[368247588,1751071872426,-490.0,0.00045205,60]
[368247589,1751071872439,-490.0,0.00045205,60]
[368247590,1751071872457,-490.0,0.00045205,60]
[368247591,1751071872471,-490.0,0.00045205,60]
[368247592,1751071872487,-490.0,0.00045205,60]
[368247593,1751071872503,-490.0,0.00045205,60]
[368247594,1751071872518,-490.0,0.00045205,60]
[368247595,1751071872533,-495.76,0.00045205,60]
[368247596,1751071872547,-490.0,0.00045205,60]
[368247597,1751071872562,-570.52,0.00045205,60]
[368247598,1751071872578,-490.0,0.00045205,60]
[368247599,1751071872593,-490.0,0.00045205,60]
[368247600,1751071872608,-490.0,0.00045205,60]
[368247601,1751071872623,-666.63,0.00045205,60]
[368247602,1751071872638,-490.0,0.00045205,60]
[368247603,1751071872652,-920.83,0.00045205,60]
[368247604,1751071872667,-490.0,0.00045205,60]
[368247605,1751071872682,-601.42,0.00045205,60]
[368247606,1751071872696,-1154.84,0.00045205,60]
[368247607,1751071872712,-490.0,0.00045205,60]
[368247608,1751071872727,-490.0,0.00045205,60]
[368247609,1751071872742,-490.0,0.00045205,60]
[368247610,1751071872756,-733.75,0.00045205,60]
[368247611,1751071872770,-490.0,0.00045205,60]
[368247612,1751071872785,-519.13,0.00045205,60]
[368247613,1751071872799,-490.0,0.00045205,60]
[368247614,1751071872813,-490.0,0.00045205,60]
[368247615,1751071872827,-1054.47,0.00045205,60]
[368247616,1751071872840,-490.0,0.00045205,60]
[368247617,1751071872854,-490.0,0.00045205,60]
[368247618,1751071872868,-490.0,0.00045205,60]
[368247619,1751071872881,-490.0,0.00045205,60]
[368247620,1751071872896,-741.5,0.00045205,60]
[368247621,1751071872910,-526.74,0.00045205,60]
[368247622,1751071872924,-490.0,0.00045205,60]
[368247623,1751071872938,-490.0,0.00045205,60]
[368247624,1751071872952,-513.84,0.00045205,60]
[368247625,1751071872967,-490.0,0.00045205,60]
[368247626,1751071872981,-490.0,0.00045205,60]
[368247627,1751071872995,-1040.12,0.00045205,60]
[368247628,1751071873012,-490.0,0.00045205,60]
[368247629,1751071873026,-555.78,0.00045205,60]
[368247630,1751071873041,-490.0,0.00045205,60]
[368247631,1751071873056,-3283.31,0.00045205,60]
[368247632,1751071873071,-490.0,0.00045205,60]
[368247633,1751071873085,-520.0,0.00045205,60]
[368247634,1751071873100,-490.0,0.00045205,60]
[368247635,1751071873116,-858.82,0.00045205,60]
[368247636,1751071873130,-490.0,0.00045205,60]
[368247637,1751071873144,-490.0,0.00045205,60]
[368247638,1751071873159,-744.08,0.00045205,60]
[368247639,1751071873173,-490.0,0.00045205,60]
[368247640,1751071873188,-490.0,0.00045205,60]
[368247641,1751071873203,-1463.6,0.00045205,60]
[368247642,1751071873218,-504.68,0.00045205,60]
[368247643,1751071873233,-848.47,0.00045205,60]
[368247644,1751071873248,-490.0,0.00045205,60]
[368247645,1751071873263,-490.0,0.00045205,60]
[368247646,1751071873278,-632.81,0.00045205,60]
[368247647,1751071873292,-408.21,0.00045205,60]
[368247648,1751071873307,-1381.52,0.00045205,60]
[368247649,1751071873321,-490.0,0.00045205,60]
[368247650,1751071873335,-821.19,0.00045205,60]
[368247651,1751071873351,-490.0,0.00045205,60]
[368247652,1751071873365,-504.18,0.00045205,60]
[368247653,1751071873381,-980.59,0.00045205,60]
[368247654,1751071873390,-490.0,0.00045205,60]
[368247655,1751071873400,-701.16,0.00045205,60]
[368247656,1751071873410,-490.0,0.00045205,60]
[368247657,1751071873419,-490.0,0.00045205,60]
[368247658,1751071873602,-1101.82,0.00045205,60]
[368247659,1751071873632,-490.0,0.00045205,60]
[368247660,1751071873642,-490.0,0.00045205,60]
[368247661,1751071873652,-492.8,0.00045205,60]
[368247662,1751071873661,-490.0,0.00045205,60]
[368247663,1751071873671,-1389.59,0.00045205,60]
[368247664,1751071873681,-761.04,0.00045205,60]
[368247665,1751071873690,-2742.88,0.00045205,60]
[368247666,1751071873700,-275.99,0.00045205,60]
[368247667,1751071873709,-3633.8,0.00045205,60]
[368247668,1751071873719,-631.21,0.00045205,60]
[368247669,1751071873729,-560.29,0.00045205,60]
[368247670,1751071873738,-490.0,0.00045205,60]
[368247671,1751071873748,-1621.27,0.00045205,60]
[368247672,1751071873758,-281.28,0.00045205,60]
[368247673,1751071873767,-1119.72,0.00045205,60]
[368247674,1751071873777,-528.93,0.00045205,60]
[368247675,1751071873788,-1270.62,0.00045205,60]
[368247676,1751071873797,-1055.73,0.00045205,60]
[368247677,1751071873807,-453.69,0.00045205,60]
[368247678,1751071873816,-490.0,0.00045205,60]
[368247679,1751071873826,-490.0,0.00045205,60]
[368247680,1751071873835,-490.0,0.00045205,60]
[368247681,1751071873847,-3883.34,0.00045205,60]
[368247682,1751071873858,-490.0,0.00045205,60]
[368247683,1751071873867,-881.48,0.00045205,60]
[368247684,1751071873876,-797.91,0.00045205,60]
[368247685,1751071873886,-490.0,0.00045205,60]
[368247686,1751071873895,-564.31,0.00045205,60]
[368247687,1751071873904,-960.84,0.00045205,60]
[368247688,1751071873913,-544.38,0.00045205,60]
[368247689,1751071873922,-819.67,0.00045205,60]
[368247690,1751071873931,-548.79,0.00045205,60]
[368247691,1751071873941,-490.0,0.00045205,60]
[368247692,1751071873952,-490.0,0.00045205,60]
[368247693,1751071873962,-490.0,0.00045205,60]
[368247694,1751071873971,-877.78,0.00045205,60]
[368247695,1751071873980,-519.68,0.00045205,60]
[368247696,1751071873990,-1100.02,0.00045205,60]
[368247697,1751071873999,-355.29735854,0.00045205,60]
[368247698,1751071874009,-499.03,0.00045205,60]
[368247699,1751071874019,-1040.49,0.00045205,60]
[368247700,1751071874028,-490.0,0.00045205,60]
[368247701,1751071874037,-942.77,0.00045205,60]
[368247702,1751071874047,-953.56,0.00045205,60]
[368247703,1751071874057,-1086.04,0.00045205,60]
[368247704,1751071874066,-490.0,0.00045205,60]
[368247705,1751071874076,-6952.88,0.00045205,60]
[368247706,1751071874086,-531.35,0.00045205,60]
[368247707,1751071874096,-1825.19,0.00045205,60]
[368247708,1751071874106,-490.0,0.00045205,60]
[368247709,1751071874115,-551.06,0.00045205,60]
[368247710,1751071874124,-1040.65,0.00045205,60]
[368247711,1751071874134,-551.92,0.00045205,60]
[368247712,1751071874143,-1592.1,0.00045205,60]
[368247713,1751071874153,-990.34,0.00045205,60]
[368247714,1751071874163,-490.0,0.00045205,60]
[368247715,1751071874173,-490.0,0.00045205,60]
[368247716,1751071874182,-511.18,0.00045205,60]
[368247717,1751071874191,-660.58,0.00045205,60]
[368247718,1751071874202,-899.19,0.00045205,60]
[368247719,1751071874214,-490.0,0.00045205,60]
[368247720,1751071874224,-554.3,0.00045205,60]
[368247721,1751071874234,-548.05,0.00045205,60]
[368247722,1751071874245,-520.0,0.00045205,60]
[368247723,1751071874254,-490.0,0.00045205,60]
[368247724,1751071874264,-490.0,0.00045205,60]
[368247725,1751071874274,-490.0,0.00045205,60]
[368247726,1751071874283,-116331.36,0.00045205,60]
[368247727,1751071874292,-490.0,0.00045205,60]
[368247728,1751071874302,-490.0,0.00045205,60]
[368247729,1751071874311,-787.73,0.00045205,60]
[368247730,1751071874320,-774.82,0.00045205,60]
[368247731,1751071874330,-896.07,0.00045205,60]
[368247732,1751071874338,-1205.17,0.00045205,60]
[368247733,1751071874348,-1755.56,0.00045205,60]
[368247734,1751071874357,-490.0,0.00045205,60]
[368247735,1751071874366,-490.0,0.00045205,60]
[368247736,1751071874375,-1776.88,0.00045205,60]
[368247737,1751071874384,-497.76,0.00045205,60]
[368247738,1751071874393,-490.0,0.00045205,60]
[368247739,1751071874402,-490.0,0.00045205,60]
[368247740,1751071874413,-490.0,0.00045205,60]
[368247741,1751071874422,-490.0,0.00045205,60]
[368247742,1751071874431,-552.71631824,0.00045205,60]
[368247743,1751071874440,-850.04,0.00045205,60]
[368247744,1751071874450,-490.0,0.00045205,60]
[368247745,1751071874460,-1470.22,0.00045205,60]
[368247746,1751071874469,-547.95,0.00045205,60]
[368247747,1751071874479,-490.0,0.00045205,60]
[368247748,1751071874491,-906.79,0.00045205,60]
[368247749,1751071874501,-656.99,0.00045205,60]
[368247750,1751071874511,-490.0,0.00045205,60]
[368247751,1751071874521,-561.17,0.00045205,60]
[368247752,1751071874531,-2168.75,0.00045205,60]
[368247753,1751071874540,-532.35,0.00045205,60]
[368247754,1751071874550,-490.0,0.00045205,60]
[368247755,1751071874559,-1280.03,0.00045205,60]
[368247756,1751071874569,-490.0,0.00045205,60]
[368247757,1751071874578,-558.63,0.00045205,60]
[368247758,1751071874587,-923.38,0.00045205,60]
[368247759,1751071874597,-490.0,0.00045205,60]
[368247760,1751071874607,-1132.38,0.00045205,60]
[368247761,1751071874616,-490.0,0.00045205,60]
[368247762,1751071874626,-681.77,0.00045205,60]
[368247763,1751071874636,-490.0,0.00045205,60]
[368247764,1751071874646,-490.0,0.00045205,60]
[368247765,1751071874656,-490.0,0.00045205,60]
[368247766,1751071874665,-1998.82,0.00045205,60]
[368247767,1751071874674,-668.11,0.00045205,60]
[368247768,1751071874684,-490.0,0.00045205,60]
[368247769,1751071874694,-716.54,0.00045205,60]
[368247770,1751071874703,-633.4,0.00045205,60]
[368247771,1751071874712,-878.36,0.00045205,60]
[368247772,1751071874721,-490.0,0.00045205,60]
[368247773,1751071874731,-490.0,0.00045205,60]
[368247774,1751071874740,-1819.64,0.00045205,60]
[368247775,1751071874749,-236.83,0.00045205,60]
[368247776,1751071874759,-490.0,0.00045205,60]
[368247777,1751071874769,-4700.89,0.00045205,60]
[368247778,1751071874778,-865.33,0.00045205,60]
[368247779,1751071874788,-742.7,0.00045205,60]
[368247780,1751071874797,-490.0,0.00045205,60]
[368247781,1751071874807,-490.0,0.00045205,60]
[368247782,1751071874816,-634.14,0.00045205,60]
[368247783,1751071874825,-490.0,0.00045205,60]
[368247784,1751071874834,-645.35,0.00045205,60]
[368247785,1751071874844,-1740.41,0.00045205,60]
[368247786,1751071874854,-490.0,0.00045205,60]
[368247787,1751071874864,-1968.42,0.00045205,14]
[368247788,1751071874873,-513.85,0.00045205,60]
[368247789,1751071874883,-2452.13,0.00045205,60]
[368247790,1751071874892,-490.0,0.00045205,60]
[368247791,1751071874902,-490.0,0.00045205,60]
[368247792,1751071874916,-654.89,0.00045205,60]
[368247793,1751071874925,-181.19,0.00045205,60]
[368247794,1751071874935,-490.0,0.00045205,60]
[368247795,1751071874945,-763.1,0.00045205,60]
[368247796,1751071874954,-573.87,0.00045205,60]
[368247797,1751071874966,-948.87,0.00045205,60]
[368247798,1751071874976,-490.0,0.00045205,60]
[368247799,1751071874986,-490.0,0.00045205,60]
[368247800,1751071874996,-490.0,0.00045205,60]
[368247801,1751071875006,-538.32,0.00045205,60]
[368247802,1751071875016,-492.97,0.00045205,60]
[368247803,1751071875025,-490.0,0.00045205,60]
[368247804,1751071875038,-722.82,0.00045205,60]
[368247805,1751071875049,-1684.21,0.00045205,60]
[368247806,1751071875059,-490.0,0.00045205,60]
[368247807,1751071875069,-742.09,0.00045205,60]
[368247808,1751071875079,-490.0,0.00045205,60]
[368247809,1751071875089,-1592.37,0.00045205,60]
[368247810,1751071875098,-520.76,0.00045205,60]
[368247811,1751071875109,-490.0,0.00045205,60]
[368247812,1751071875119,-490.0,0.00045205,60]
[368247813,1751071875129,-1085.58,0.00045205,60]
[368247814,1751071875141,-592.17,0.00045205,60]
[368247815,1751071875151,-717.14,0.00045205,60]
[368247816,1751071875161,-588.68,0.00045205,60]
[368247817,1751071875171,-2828.04,0.00045205,60]
[368247818,1751071875181,-490.0,0.00045205,60]
[368247819,1751071875194,-2351.28,0.00045205,60]
[368247820,1751071875209,-490.0,0.00045205,60]
[368247821,1751071875221,-1128.63,0.00045205,60]
[368247822,1751071875232,-1000.0,0.00045205,60]
[368247823,1751071875243,-490.0,0.00045205,60]
[368247824,1751071875255,-150.0,0.00045207,2]
[368247825,1751071875267,-150.0,0.00045238,2]
[368247826,1751071875280,-9785.18177869,0.00045257,15]
[368247827,1751071875289,-150.0,0.00045287,2]
[368247828,1751071875300,-150.0,0.00045334,2]
[368247829,1751071875309,-275.78651878,0.00045401,28]
[368247830,1751071875319,-150.0,0.00045417,2]
[368247831,1751071875329,-150.0,0.00045448,2]
[368247832,1751071875339,-213.43,0.00045478,120]
[368247833,1751071875348,-500.0,0.00045478,60]
[368247834,1751071875357,-490.0,0.00045479,60]
[368247835,1751071875367,-490.0,0.00045479,60]
[368247836,1751071875376,-490.0,0.00045479,60]
[368247837,1751071875386,-490.0,0.00045479,60]
[368247838,1751071875396,-490.0,0.00045479,60]
[368247839,1751071875406,-490.0,0.00045479,60]
[368247840,1751071875415,-151.0,0.00045479,2]
[368247841,1751071875425,-490.0,0.00045479,60]
[368247842,1751071875436,-490.0,0.00045479,60]
[368247843,1751071875446,-490.0,0.00045479,60]
[368247844,1751071875456,-490.0,0.00045479,60]
[368247845,1751071875466,-490.0,0.00045479,60]
[368247846,1751071875480,-490.0,0.00045479,60]
[368247847,1751071875491,-632.98,0.00045479,60]
[368247848,1751071875501,-490.0,0.00045479,60]
[368247849,1751071875510,-594.52,0.00045479,60]
[368247850,1751071875520,-490.0,0.00045479,60]
[368247851,1751071875530,-490.0,0.00045479,60]
[368247852,1751071875540,-490.0,0.00045479,60]
[368247853,1751071875549,-490.0,0.00045479,60]
[368247854,1751071875560,-553.58,0.00045479,60]
[368247855,1751071875570,-508.58,0.00045479,60]
[368247856,1751071875579,-490.0,0.00045479,60]
[368247857,1751071875589,-490.0,0.00045479,60]
[368247858,1751071875599,-490.0,0.00045479,60]
[368247859,1751071875609,-490.0,0.00045479,60]
[368247860,1751071875619,-490.0,0.00045479,60]
[368247861,1751071875629,-490.0,0.00045479,60]
[368247862,1751071875639,-490.0,0.00045479,60]
[368247863,1751071875649,-490.0,0.00045479,60]
[368247864,1751071875658,-490.0,0.00045479,60]
[368247865,1751071875668,-656.12,0.00045479,2]
[368247866,1751071875678,-490.0,0.00045479,60]
[368247867,1751071875688,-490.0,0.00045479,60]
[368247868,1751071875698,-510.76,0.00045479,60]
[368247869,1751071875707,-490.0,0.00045479,60]
[368247870,1751071875717,-687.24,0.00045479,60]
[368247871,1751071875726,-490.0,0.00045479,60]
[368247872,1751071875736,-490.0,0.00045479,60]
[368247873,1751071875746,-490.0,0.00045479,60]
[368247874,1751071875755,-490.0,0.00045479,60]
[368247875,1751071875765,-490.0,0.00045479,60]
[368247876,1751071875774,-490.0,0.00045479,60]
[368247877,1751071875784,-490.0,0.00045479,60]
[368247878,1751071875794,-490.0,0.00045479,60]
[368247879,1751071875805,-490.0,0.00045479,60]
[368247880,1751071875815,-1241.16,0.00045479,60]
[368247881,1751071875824,-490.0,0.00045479,60]
[368247882,1751071875834,-490.0,0.00045479,60]
[368247883,1751071875844,-779.72,0.00045479,60]
[368247884,1751071875854,-490.0,0.00045479,60]
[368247885,1751071875864,-500.0,0.00045479,120]
[368247886,1751071875873,-490.0,0.00045479,60]
[368247887,1751071875883,-490.0,0.00045479,60]
[368247888,1751071875894,-424.06,0.00045479,60]
[368247889,1751071875905,-490.0,0.00045479,60]
[368247890,1751071875916,-490.0,0.00045479,60]
[368247891,1751071875927,-597.71,0.00045479,60]
[368247892,1751071875937,-490.0,0.00045479,60]
[368247893,1751071875947,-490.0,0.00045479,60]
[368247894,1751071875957,-490.0,0.00045479,60]
[368247895,1751071875967,-156.106223,0.00045479,60]
[368247896,1751071875977,-696.1,0.00045479,60]
[368247897,1751071875986,-490.0,0.00045479,60]
[368247898,1751071875996,-490.0,0.00045479,60]
[368247899,1751071876006,-490.0,0.00045479,60]
[368247900,1751071876015,-490.0,0.00045479,60]
[368247901,1751071876036,-216.24,0.00045479,60]
[368247902,1751071876048,-154.28143,0.00045479,60]
[368247903,1751071876058,-490.0,0.00045479,60]
[368247904,1751071876068,-490.0,0.00045479,60]
[368247905,1751071876078,-490.0,0.00045479,60]
[368247906,1751071876088,-490.0,0.00045479,60]
[368247907,1751071876097,-490.0,0.00045479,60]
[368247908,1751071876107,-490.0,0.00045479,60]
[368247909,1751071876117,-490.0,0.00045479,60]
[368247910,1751071876127,-179.564808,0.00045479,60]
[368247911,1751071876137,-721.73,0.00045479,60]
[368247912,1751071876147,-490.0,0.00045479,60]
[368247913,1751071876156,-490.0,0.00045479,60]
[368247914,1751071876166,-490.0,0.00045479,60]
[368247915,1751071876175,-490.0,0.00045479,60]
[368247916,1751071876185,-490.0,0.00045479,60]
[368247917,1751071876195,-221.4,0.00045479,60]
[368247918,1751071876207,-490.0,0.00045479,60]
[368247919,1751071876219,-490.0,0.00045479,60]
[368247920,1751071876229,-958.32,0.00045479,60]
[368247921,1751071876238,-490.0,0.00045479,60]
[368247922,1751071876248,-490.0,0.00045479,60]
[368247923,1751071876258,-490.0,0.00045479,60]
[368247924,1751071876268,-507.37,0.00045479,60]
[368247925,1751071876278,-490.0,0.00045479,60]
[368247926,1751071876287,-490.0,0.00045479,60]
[368247927,1751071876297,-490.0,0.00045479,60]
[368247928,1751071876479,-743.38,0.00045479,60]
[368247929,1751071876508,-526.08,0.00045479,60]
[368247930,1751071876518,-490.0,0.00045479,60]
[368247931,1751071876527,-490.0,0.00045479,60]
[368247932,1751071876537,-1492.54,0.00045479,60]
[368247933,1751071876546,-519.17,0.00045479,60]
[368247934,1751071876556,-490.0,0.00045479,60]
[368247935,1751071876565,-490.0,0.00045479,60]
[368247936,1751071876574,-490.0,0.00045479,60]
[368247937,1751071876583,-490.0,0.00045479,60]
[368247938,1751071876593,-490.0,0.00045479,60]
[368247939,1751071876603,-490.0,0.00045479,60]
[368247940,1751071876612,-490.0,0.00045479,60]
[368247941,1751071876621,-490.0,0.00045479,60]
[368247942,1751071876631,-490.0,0.00045479,60]
[368247943,1751071876641,-490.0,0.00045479,60]
[368247944,1751071876650,-490.0,0.00045479,60]
[368247945,1751071876660,-490.0,0.00045479,60]
[368247946,1751071876669,-570.52,0.00045479,60]
[368247947,1751071876678,-490.0,0.00045479,60]
[368247948,1751071876688,-490.0,0.00045479,60]
[368247949,1751071876697,-490.0,0.00045479,60]
[368247950,1751071876706,-666.63,0.00045479,60]
[368247951,1751071876715,-920.83,0.00045479,60]
[368247952,1751071876725,-490.0,0.00045479,60]
[368247953,1751071876734,-1154.84,0.00045479,60]
[368247954,1751071876743,-490.0,0.00045479,60]
[368247955,1751071876752,-733.75,0.00045479,60]
[368247956,1751071876762,-519.13,0.00045479,60]
[368247957,1751071876771,-490.0,0.00045479,60]
[368247958,1751071876780,-1054.47,0.00045479,60]
[368247959,1751071876791,-490.0,0.00045479,60]
[368247960,1751071876800,-490.0,0.00045479,60]
[368247961,1751071876810,-551.46,0.00045479,60]
[368247962,1751071876819,-490.0,0.00045479,60]
[368247963,1751071876828,-741.5,0.00045479,60]
[368247964,1751071876837,-526.74,0.00045479,60]
[368247965,1751071876846,-490.0,0.00045479,60]
[368247966,1751071876856,-513.84,0.00045479,60]
[368247967,1751071876865,-616.77,0.00045479,60]
[368247968,1751071876875,-490.0,0.00045479,60]
[368247969,1751071876884,-1040.12,0.00045479,60]
[368247970,1751071876894,-490.0,0.00045479,60]
[368247971,1751071876903,-555.78,0.00045479,60]
[368247972,1751071876913,-490.0,0.00045479,60]
[368247973,1751071876923,-3283.31,0.00045479,60]
[368247974,1751071876932,-490.0,0.00045479,60]
[368247975,1751071876942,-181.12,0.00045479,60]
[368247976,1751071876952,-490.0,0.00045479,60]
[368247977,1751071876962,-858.82,0.00045479,60]
[368247978,1751071876972,-490.0,0.00045479,60]
[368247979,1751071876982,-744.08,0.00045479,60]
[368247980,1751071876992,-490.0,0.00045479,60]
[368247981,1751071877001,-490.0,0.00045479,60]
[368247982,1751071877011,-1463.6,0.00045479,60]
[368247983,1751071877020,-504.68,0.00045479,60]
[368247984,1751071877029,-848.47,0.00045479,60]